fUSD/lending_fUSD_20250826
["ID","MTS","AMOUNT","RATE_DAILY","PERIOD"]
[381511796,1756241512648,-1127.57,0.00027945,5]
[381511797,1756241512662,-1170.56,0.00027945,5]
[381511798,1756241512673,-409.45,0.00027945,5]
[381511799,1756241512683,-400.0,0.00027945,5]
[381511800,1756241512692,-400.0,0.00027945,5]
[381511801,1756241512703,-400.0,0.00027945,5]
[381511802,1756241512713,-651.37,0.00027945,5]
[381511803,1756241512725,-400.0,0.00027945,5]
[381511804,1756241512737,-1154.93,0.00027945,5]
[381511805,1756241512747,-873.49,0.00027945,5]
[381511806,1756241512756,-631.06,0.00027945,5]
[381511807,1756241512766,-671.09,0.00027945,5]
[381511808,1756241512776,-400.0,0.00027945,5]
[381511809,1756241512785,-400.0,0.00027945,5]
[381511810,1756241512796,-1026.44,0.00027945,5]
[381511811,1756241512809,-1462.51,0.00027945,5]
[381511812,1756241512820,-400.0,0.00027945,5]
[381511813,1756241512831,-833.65,0.00027945,5]
[381511814,1756241512841,-621.72,0.00027945,5]
[381511815,1756241512851,-705.39,0.00027945,5]
[381511816,1756241512860,-400.0,0.00027945,5]
[381511817,1756241512870,-594.32,0.00027945,5]
[381511818,1756241512880,-500.92,0.00027945,5]
[381511819,1756241512890,-400.0,0.00027945,5]
[381511820,1756241512900,-1064.51,0.00027945,5]
[381511821,1756241512911,-400.0,0.00027945,5]
[381511822,1756241512921,-709.48,0.00027945,5]
[381511823,1756241512930,-786.02,0.00027945,5]
[381511824,1756241512940,-645.93,0.00027945,5]
[381511825,1756241512950,-2056.83,0.00027945,5]
[381511826,1756241512961,-400.0,0.00027945,5]
[381511827,1756241512971,-502.57,0.00027945,5]
[381511828,1756241512981,-404.02585473,0.00027945,5]
[381511829,1756241512992,-400.0,0.00027945,5]
[381511830,1756241513002,-597.42,0.00027945,5]
[381511831,1756241513012,-400.0,0.00027945,5]
[381511832,1756241513023,-400.0,0.00027945,5]
[381511833,1756241513033,-1026.17,0.00027945,5]
[381511834,1756241513043,-673.85,0.00027945,5]
[381511835,1756241513052,-400.0,0.00027945,5]
[381511836,1756241513062,-1701.54,0.00027945,5]
[381511837,1756241513072,-400.0,0.00027945,5]
[381511838,1756241513083,-592.55,0.00027945,5]
[381511839,1756241513092,-400.0,0.00027945,5]
[381511840,1756241513102,-400.0,0.00027945,5]
[381511841,1756241513112,-539.64,0.00027945,5]
[381511842,1756241513121,-1055.15,0.00027945,5]
[381511843,1756241513131,-400.0,0.00027945,5]
[381511844,1756241513141,-759.0,0.00027945,5]
[381511845,1756241513151,-400.0,0.00027945,5]
[381511846,1756241513163,-400.0,0.00027945,5]
[381511847,1756241513172,-826.67,0.00027945,5]
[381511848,1756241513182,-768.63,0.00027945,5]
[381511849,1756241513192,-400.0,0.00027945,5]
[381511850,1756241513202,-1039.47,0.00027945,5]
[381511851,1756241513211,-180.0,0.00027945,5]
[381511852,1756241513221,-551.82,0.00027945,5]
[381511853,1756241513231,-400.0,0.00027945,5]
[381511854,1756241513240,-538.35,0.00027945,5]
[381511855,1756241513250,-1099.04,0.00027945,5]
[381511856,1756241513260,-1318.41,0.00027945,5]
[381511857,1756241513270,-400.0,0.00027945,5]
[381511858,1756241513280,-400.0,0.00027945,5]
[381511859,1756241513290,-1083.63,0.00027945,5]
[381511860,1756241513300,-400.0,0.00027945,5]
[381511861,1756241513309,-400.0,0.00027945,5]
[381511862,1756241513319,-400.0,0.00027945,5]
[381511863,1756241513329,-518.43,0.00027945,5]
[381511864,1756241513339,-287.06523414,0.00027945,5]
[381511865,1756241513348,-1292.6,0.00027945,5]
[381511866,1756241513358,-400.0,0.00027945,5]
[381511867,1756241513368,-180.32490413,0.00027945,5]
[381511868,1756241513378,-400.0,0.00027945,5]
[381511869,1756241513388,-490.0,0.00027945,5]
[381511870,1756241513397,-685.3,0.00027945,5]
[381511871,1756241513407,-400.0,0.00027945,5]
[381511872,1756241513417,-400.0,0.00027945,5]
[381511873,1756241513427,-400.0,0.00027945,5]
[381511874,1756241513437,-408.52,0.00027945,5]
[381511875,1756241513446,-1838.42,0.00027945,5]
[381511876,1756241513456,-400.0,0.00027945,5]
[381511877,1756241513465,-400.0,0.00027945,5]
[381511878,1756241513475,-400.0,0.00027945,5]
[381511879,1756241513485,-445.53,0.00027945,5]
[381511880,1756241513495,-683.05,0.00027945,5]
[381511881,1756241513506,-652.82,0.00027945,5]
[381511882,1756241513516,-928.9,0.00027945,5]
[381511883,1756241513527,-400.0,0.00027945,5]
[381511884,1756241513537,-459.23,0.00027945,5]
[381511885,1756241513547,-400.0,0.00027945,5]
[381511886,1756241513558,-730.1,0.00027945,5]
[381511887,1756241513568,-400.0,0.00027945,5]
[381511888,1756241513580,-400.0,0.00027945,5]
[381511889,1756241513590,-400.0,0.00027945,5]
[381511890,1756241513599,-400.0,0.00027945,5]
[381511891,1756241513610,-1476.2,0.00027945,5]
[381511892,1756241513620,-400.0,0.00027945,5]
[381511893,1756241513630,-490.0,0.00027945,5]
[381511894,1756241513640,-400.0,0.00027945,5]
[381511895,1756241513651,-235.50759023,0.00027945,5]
[381511896,1756241513665,-422.53,0.00027945,5]
[381511897,1756241513675,-180.0,0.00027945,5]
[381511898,1756241513686,-1645.9,0.00027945,5]
[381511899,1756241513698,-664.23,0.00027945,5]
[381511900,1756241513708,-989.59,0.00027945,5]
[381511901,1756241513718,-400.0,0.00027945,5]
[381511902,1756241513729,-605.34,0.00027945,5]
[381511903,1756241513740,-550.64,0.00027945,5]
[381511904,1756241513750,-1202.97,0.00027945,5]
[381511905,1756241513761,-400.0,0.00027945,5]
[381511906,1756241513772,-553.75,0.00027945,5]
[381511907,1756241513783,-525.82,0.00027945,5]
[381511908,1756241513793,-797.87,0.00027945,5]
[381511909,1756241513804,-1176.87,0.00027945,5]
[381511910,1756241513815,-400.0,0.00027945,5]
[381511911,1756241513826,-182.76664575,0.00027945,5]
[381511912,1756241513837,-430.93,0.00027945,5]
[381511913,1756241513847,-400.0,0.00027945,5]
[381511914,1756241513858,-1024.28,0.00027945,5]
[381511915,1756241513868,-604.31,0.00027945,5]
[381511916,1756241513881,-400.0,0.00027945,5]
[381511917,1756241514201,-400.0,0.00027945,5]
[381511918,1756241514210,-1279.18,0.00027945,5]
[381511919,1756241514219,-400.0,0.00027945,5]
[381511920,1756241514229,-400.0,0.00027945,5]
[381511921,1756241514238,-674.79,0.00027945,5]
[381511922,1756241514248,-724.53,0.00027945,5]
[381511923,1756241514257,-400.0,0.00027945,5]
[381511924,1756241514267,-633.91,0.00027945,5]
[381511925,1756241514276,-400.0,0.00027945,5]
[381511926,1756241514286,-400.0,0.00027945,5]
[381511927,1756241514295,-400.0,0.00027945,5]
[381511928,1756241514305,-1107.16,0.00027945,5]
[381511929,1756241514314,-400.0,0.00027945,5]
[381511930,1756241514324,-750.15,0.00027945,5]
[381511931,1756241514335,-528.26,0.00027945,5]
[381511932,1756241514344,-405.38970683,0.00027945,5]
[381511933,1756241514354,-479.66,0.00027945,5]
[381511934,1756241514364,-400.0,0.00027945,5]
[381511935,1756241514373,-572.57,0.00027945,5]
[381511936,1756241514383,-1444.81,0.00027945,5]
[381511937,1756241514393,-1101.28,0.00027945,5]
[381511938,1756241514404,-703.76,0.00027945,5]
[381511939,1756241514414,-632.11,0.00027945,5]
[381511940,1756241514424,-1256.53,0.00027945,5]
[381511941,1756241514436,-1274.54,0.00027945,5]
[381511942,1756241514446,-1122.89,0.00027945,5]
[381511943,1756241514456,-1175.69,0.00027945,5]
[381511944,1756241514465,-400.0,0.00027945,5]
[381511945,1756241514474,-618.23,0.00027945,5]
[381511946,1756241514484,-400.0,0.00027945,5]
[381511947,1756241514493,-418.77,0.00027945,5]
[381511948,1756241514503,-554.31,0.00027945,5]
[381511949,1756241514512,-259.90284033,0.00027945,5]
[381511950,1756241514521,-972.44,0.00027945,5]
[381511951,1756241514531,-400.0,0.00027945,5]
[381511952,1756241514540,-400.0,0.00027945,5]
[381511953,1756241514550,-685.1,0.00027945,5]
[381511954,1756241514559,-400.0,0.00027945,5]
[381511955,1756241514568,-651.5,0.00027945,5]
[381511956,1756241514578,-652.07,0.00027945,5]
[381511957,1756241514587,-1281.45,0.00027945,5]
[381511958,1756241514596,-958.82,0.00027945,5]
[381511959,1756241514606,-649.23,0.00027945,5]
[381511960,1756241514615,-400.0,0.00027945,5]
[381511961,1756241514625,-400.0,0.00027945,5]
[381511962,1756241514636,-915.75,0.00027945,5]
[381511963,1756241514645,-490.0,0.00027945,5]
[381511964,1756241514658,-883.71,0.00027945,5]
[381511965,1756241514667,-946.76,0.00027945,5]
[381511966,1756241514676,-894.85,0.00027945,5]
[381511967,1756241514685,-400.0,0.00027945,5]
[381511968,1756241514695,-529.42,0.00027945,5]
[381511969,1756241514705,-585.8,0.00027945,5]
[381511970,1756241514714,-400.0,0.00027945,2]
[381511971,1756241514724,-507.07,0.00027945,5]
[381511972,1756241514734,-784.82,0.00027945,5]
[381511973,1756241514744,-576.33,0.00027945,5]
[381511974,1756241514754,-504.02,0.00027945,5]
[381511975,1756241514763,-620.82,0.00027945,5]
[381511976,1756241514773,-853.7,0.00027945,5]
[381511977,1756241514782,-465.83,0.00027945,5]
[381511978,1756241514792,-490.0,0.00027945,5]
[381511979,1756241514801,-400.0,0.00027945,5]
[381511980,1756241514811,-400.0,0.00027945,5]
[381511981,1756241514820,-1163.82,0.00027945,5]
[381511982,1756241514830,-400.0,0.00027945,5]
[381511983,1756241514840,-912.06,0.00027945,5]
[381511984,1756241514849,-874.35,0.00027945,5]
[381511985,1756241514858,-635.15,0.00027945,5]
[381511986,1756241514867,-1092.8,0.00027945,5]
[381511987,1756241514876,-1307.38,0.00027945,5]
[381511988,1756241514886,-594.72,0.00027945,5]
[381511989,1756241514895,-400.0,0.00027945,5]
[381511990,1756241514905,-400.0,0.00027945,5]
[381511991,1756241514914,-812.28,0.00027945,5]
[381511992,1756241514924,-631.27,0.00027945,5]
[381511993,1756241514934,-1458.57,0.00027945,5]
[381511994,1756241514943,-1590.39,0.00027945,5]
[381511995,1756241514953,-400.0,0.00027945,5]
[381511996,1756241514963,-400.0,0.00027945,5]
[381511997,1756241514972,-400.0,0.00027945,5]
[381511998,1756241514981,-400.0,0.00027945,5]
[381511999,1756241514991,-637.67,0.00027945,5]
[381512000,1756241515001,-867.88,0.00027945,5]
[381512001,1756241515010,-1418.33,0.00027945,5]
[381512002,1756241515019,-400.0,0.00027945,5]
[381512003,1756241515029,-1313.49,0.00027945,5]
[381512004,1756241515039,-1558.02,0.00027945,5]
[381512005,1756241515049,-400.0,0.00027945,5]
[381512006,1756241515059,-490.0,0.00027945,5]
[381512007,1756241515068,-516.92008757,0.00027945,5]
[381512008,1756241515078,-430.08,0.00027945,5]
[381512009,1756241515087,-404.64,0.00027945,5]
[381512010,1756241515096,-400.0,0.00027945,5]
[381512011,1756241515105,-400.0,0.00027945,5]
[381512012,1756241515114,-400.0,0.00027945,5]
[381512013,1756241515124,-439.24,0.00027945,5]
[381512014,1756241515133,-400.0,0.00027945,5]
[381512015,1756241515142,-400.0,0.00027945,5]
[381512016,1756241515152,-1013.92,0.00027945,5]
[381512017,1756241515161,-747.3,0.00027945,5]
[381512018,1756241515170,-663.07,0.00027945,5]
[381512019,1756241515179,-400.0,0.00027945,5]
[381512020,1756241515188,-400.0,0.00027945,5]
[381512021,1756241515197,-1211.27,0.00027945,5]
[381512022,1756241515207,-456.98,0.00027945,5]
[381512023,1756241515216,-400.0,0.00027945,5]
[381512024,1756241515226,-400.0,0.00027945,5]
[381512025,1756241515235,-400.0,0.00027945,5]
[381512026,1756241515244,-249.45479461,0.00027945,5]
[381512027,1756241515253,-745.4,0.00027945,5]
[381512028,1756241515263,-1231.96,0.00027945,5]
[381512029,1756241515272,-1161.0,0.00027945,5]
[381512030,1756241515282,-743.35,0.00027945,5]
[381512031,1756241515291,-655.46,0.00027945,5]
[381512032,1756241515300,-400.0,0.00027945,5]
[381512033,1756241515310,-400.0,0.00027945,5]
[381512034,1756241515320,-401.19481742,0.00027945,5]
[381512035,1756241515330,-400.0,0.00027945,5]
[381512036,1756241515339,-1000.0,0.00027945,5]
[381512037,1756241515348,-400.0,0.00027945,5]
[381512038,1756241515358,-848.08,0.00027945,5]
[381512039,1756241515367,-1159.42,0.00027945,5]
[381512040,1756241515376,-400.0,0.00027945,5]
[381512041,1756241515386,-400.0,0.00027945,5]
[381512042,1756241515395,-1000.0,0.00027945,5]
[381512043,1756241515404,-649.59,0.00027945,5]
[381512044,1756241515413,-400.0,0.00027945,5]
[381512045,1756241515422,-400.0,0.00027945,5]
[381512046,1756241515432,-773.34,0.00027945,5]
[381512047,1756241515441,-400.0,0.00027945,5]
[381512048,1756241515450,-743.17,0.00027945,5]
[381512049,1756241515460,-400.0,0.00027945,5]
[381512050,1756241515469,-526.09,0.00027945,5]
[381512051,1756241515479,-1065.78,0.00027945,5]
[381512052,1756241515488,-1318.56,0.00027945,5]
[381512053,1756241515498,-1259.46,0.00027945,5]
[381512054,1756241515507,-876.48,0.00027945,5]
[381512055,1756241515517,-949.19,0.00027945,5]
[381512056,1756241515527,-780.54,0.00027945,5]
[381512057,1756241515537,-887.85,0.00027945,5]
[381512058,1756241515547,-400.0,0.00027945,5]
[381512059,1756241515556,-671.05,0.00027945,5]
[381512060,1756241515566,-1414.96,0.00027945,5]
[381512061,1756241515575,-400.0,0.00027945,5]
[381512062,1756241515584,-400.0,0.00027945,5]
[381512063,1756241515594,-1547.69,0.00027945,5]
[381512064,1756241515603,-400.0,0.00027945,5]
[381512065,1756241515612,-400.0,0.00027945,5]
[381512066,1756241515622,-400.0,0.00027945,5]
[381512067,1756241515633,-400.0,0.00027945,5]
[381512068,1756241515643,-400.0,0.00027945,5]
[381512069,1756241515654,-512.39,0.00027945,5]
[381512070,1756241515664,-400.0,0.00027945,5]
[381512071,1756241515673,-400.0,0.00027945,5]
[381512072,1756241515682,-446.90098753,0.00027945,5]
[381512073,1756241515693,-1535.62,0.00027945,5]
[381512074,1756241515702,-1559.06,0.00027945,5]
[381512075,1756241515713,-1251.31,0.00027945,5]
[381512076,1756241515722,-400.0,0.00027945,5]
[381512077,1756241515733,-653.35,0.00027945,5]
[381512078,1756241515744,-400.0,0.00027945,5]
[381512079,1756241515754,-1133.36,0.00027945,5]
[381512080,1756241515763,-400.0,0.00027945,5]
[381512081,1756241515773,-2362.46,0.00027945,5]
[381512082,1756241515782,-180.0,0.00027945,5]
[381512083,1756241515791,-400.0,0.00027945,5]
[381512084,1756241515801,-400.0,0.00027945,5]
[381512085,1756241515810,-400.41034982,0.00027945,5]
[381512086,1756241515820,-1339.79,0.00027945,5]
[381512087,1756241515830,-594.75,0.00027945,5]
[381512088,1756241515839,-1103.35,0.00027945,5]
[381512089,1756241515849,-980.8,0.00027945,5]
[381512090,1756241515858,-522.18,0.00027945,5]
[381512091,1756241515868,-400.0,0.00027945,5]
[381512092,1756241515877,-1150.82,0.00027945,5]
[381512093,1756241515886,-400.0,0.00027945,5]
[381512094,1756241515896,-736.52,0.00027945,5]
[381512095,1756241515905,-873.8,0.00027945,5]
[381512096,1756241515914,-312.95348294,0.00027945,5]
[381512097,1756241515924,-400.0,0.00027945,5]
[381512098,1756241515933,-1186.05,0.00027945,5]
[381512099,1756241515942,-400.0,0.00027945,5]
[381512100,1756241515951,-400.0,0.00027945,5]
[381512101,1756241515961,-400.0,0.00027945,5]
[381512102,1756241515970,-838.5,0.00027945,5]
[381512103,1756241515980,-400.0,0.00027945,5]
[381512104,1756241515989,-1194.72,0.00027945,5]
[381512105,1756241515998,-1613.82,0.00027945,5]
[381512106,1756241516008,-476.24,0.00027945,5]
[381512107,1756241516017,-476.16,0.00027945,5]
[381512108,1756241516027,-709.35,0.00027945,5]
[381512109,1756241516036,-400.0,0.00027945,5]
[381512110,1756241516046,-1076.09,0.00027945,5]
[381512111,1756241516056,-400.0,0.00027945,5]
[381512112,1756241516066,-400.0,0.00027945,5]
[381512113,1756241516076,-1039.54,0.00027945,5]
[381512114,1756241516085,-180.0,0.00027945,5]
[381512115,1756241516095,-400.0,0.00027945,5]
[381512116,1756241516105,-1278.48,0.00027945,5]
[381512117,1756241516115,-400.0,0.00027945,2]
[381512118,1756241516125,-1701.93,0.00027945,5]
[381512119,1756241516134,-400.0,0.00027945,5]
[381512120,1756241516144,-544.88,0.00027945,5]
[381512121,1756241516153,-400.0,0.00027945,5]
[381512122,1756241516163,-461.88,0.00027945,5]
[381512123,1756241516173,-1109.3,0.00027945,5]
[381512124,1756241516183,-400.0,0.00027945,5]
[381512125,1756241516192,-490.0,0.00027945,5]
[381512126,1756241516202,-1060.69,0.00027945,5]
[381512127,1756241516212,-903.46,0.00027945,5]
[381512128,1756241516221,-180.0,0.00027945,5]
[381512129,1756241516231,-400.0,0.00027945,5]
[381512130,1756241516240,-180.0,0.00027945,5]
[381512131,1756241516250,-180.0,0.00027945,5]
[381512132,1756241516260,-1446.06,0.00027945,5]
[381512133,1756241516270,-400.0,0.00027945,5]
[381512134,1756241516279,-400.0,0.00027945,5]
[381512135,1756241516291,-927.15,0.00027945,5]
[381512136,1756241516300,-449.99,0.00027945,5]
[381512137,1756241516310,-490.89459948,0.00027945,5]
[381512138,1756241516319,-1108.01,0.00027945,5]
[381512139,1756241516328,-400.0,0.00027945,5]
[381512140,1756241516338,-419.09,0.00027945,5]
[381512141,1756241516347,-895.35,0.00027945,5]
[381512142,1756241516356,-981.22,0.00027945,5]
[381512143,1756241516365,-400.0,0.00027945,5]
[381512144,1756241516374,-400.0,0.00027945,5]
[381512145,1756241516383,-452.45,0.00027945,5]
[381512146,1756241516392,-863.29,0.00027945,5]
[381512147,1756241516401,-3766.32,0.00027945,5]
[381512148,1756241516410,-1196.06,0.00027945,5]
[381512149,1756241516419,-465.1,0.00027945,5]
[381512150,1756241516428,-726.39,0.00027945,5]
[381512151,1756241516438,-400.0,0.00027945,5]
[381512152,1756241516562,-1057.01,0.00027945,5]
[381512153,1756241516571,-400.0,0.00027945,5]
[381512154,1756241516581,-1043.85,0.00027945,5]
[381512155,1756241516590,-1442.83,0.00027945,5]
[381512156,1756241516600,-550.37,0.00027945,5]
[381512157,1756241516609,-1108.15,0.00027945,5]
[381512158,1756241516618,-724.05,0.00027945,5]
[381512159,1756241516627,-1302.26,0.00027945,5]
[381512160,1756241516636,-492.90027883,0.00027945,5]
[381512161,1756241516646,-400.0,0.00027945,5]
[381512162,1756241516657,-400.0,0.00027945,5]
[381512163,1756241516667,-418.65695526,0.00027945,5]
[381512164,1756241516676,-400.0,0.00027945,5]
[381512165,1756241516685,-400.0,0.00027945,5]
[381512166,1756241516695,-528.70373378,0.00027945,5]
[381512167,1756241516705,-1602.59,0.00027945,5]
[381512168,1756241516714,-400.0,0.00027945,5]
[381512169,1756241516723,-513.25,0.00027945,5]
[381512170,1756241516734,-1161.97,0.00027945,5]
[381512171,1756241516743,-400.0,0.00027945,5]
[381512172,1756241516753,-619.03,0.00027945,5]
[381512173,1756241516762,-898.08,0.00027945,5]
[381512174,1756241516771,-1031.63,0.00027945,5]
[381512175,1756241516781,-400.0,0.00027945,5]
[381512176,1756241516790,-400.0,0.00027945,5]
[381512177,1756241516799,-400.0,0.00027945,5]
[381512178,1756241516808,-601.75,0.00027945,5]
[381512179,1756241516817,-665.32,0.00027945,5]
[381512180,1756241516827,-462.67,0.00027945,5]
[381512181,1756241516836,-412.46,0.00027945,5]
[381512182,1756241516845,-632.38,0.00027945,5]
[381512183,1756241516855,-400.0,0.00027945,5]
[381512184,1756241516864,-1081.36,0.00027945,5]
[381512185,1756241516873,-1012.0,0.00027945,5]
[381512186,1756241516882,-603.38,0.00027945,5]
[381512187,1756241516891,-1539.72,0.00027945,5]
[381512188,1756241516900,-941.11,0.00027945,5]
[381512189,1756241516910,-180.0,0.00027945,5]
[381512190,1756241516919,-1249.28,0.00027945,5]
[381512191,1756241516928,-400.0,0.00027945,5]
[381512192,1756241516938,-400.0,0.00027945,5]
[381512193,1756241516947,-605.99,0.00027945,5]
[381512194,1756241516956,-1357.5,0.00027945,5]
[381512195,1756241516965,-400.0,0.00027945,5]
[381512196,1756241516975,-898.18,0.00027945,5]
[381512197,1756241516984,-833.74,0.00027945,5]
[381512198,1756241516994,-400.0,0.00027945,5]
[381512199,1756241517003,-400.0,0.00027945,5]
[381512200,1756241517012,-400.0,0.00027945,5]
[381512201,1756241517022,-612.88,0.00027945,5]
[381512202,1756241517031,-810.06,0.00027945,5]
[381512203,1756241517041,-294.83739759,0.00027945,5]
[381512204,1756241517051,-1427.98,0.00027945,5]
[381512205,1756241517060,-400.0,0.00027945,5]
[381512206,1756241517069,-400.0,0.00027945,5]
[381512207,1756241517078,-856.12,0.00027945,5]
[381512208,1756241517087,-888.88,0.00027945,5]
[381512209,1756241517097,-899.13,0.00027945,5]
[381512210,1756241517106,-1007.292766,0.00027945,5]
[381512211,1756241517115,-1124.57,0.00027945,5]
[381512212,1756241517124,-481.34,0.00027945,5]
[381512213,1756241517133,-403.59677283,0.00027945,5]
[381512214,1756241517143,-1028.9,0.00027945,5]
[381512215,1756241517155,-180.0,0.00027945,5]
[381512216,1756241517164,-180.0,0.00027945,5]
[381512217,1756241517175,-400.0,0.00027945,5]
[381512218,1756241517184,-536.96,0.00027945,5]
[381512219,1756241517193,-965.59,0.00027945,5]
[381512220,1756241517203,-1454.97,0.00027945,5]
[381512221,1756241517212,-400.0,0.00027945,5]
[381512222,1756241517221,-643.97,0.00027945,5]
[381512223,1756241517230,-1082.39,0.00027945,5]
[381512224,1756241517240,-1176.37,0.00027945,5]
[381512225,1756241517249,-715.42,0.00027945,5]
[381512226,1756241517259,-583.29,0.00027945,5]
[381512227,1756241517268,-490.0,0.00027945,5]
[381512228,1756241517278,-627.32,0.00027945,5]
[381512229,1756241517287,-400.0,0.00027945,5]
[381512230,1756241517296,-852.32,0.00027945,5]
[381512231,1756241517305,-1051.04,0.00027945,5]
[381512232,1756241517314,-400.0,0.00027945,5]
[381512233,1756241517323,-400.0,0.00027945,5]
[381512234,1756241517333,-400.0,0.00027945,5]
[381512235,1756241517343,-1259.85,0.00027945,5]
[381512236,1756241517352,-848.91,0.00027945,5]
[381512237,1756241517361,-1256.33,0.00027945,5]
[381512238,1756241517370,-400.0,0.00027945,5]
[381512239,1756241517380,-1391.9,0.00027945,5]
[381512240,1756241517389,-400.0,0.00027945,5]
[381512241,1756241517399,-678.84,0.00027945,5]
[381512242,1756241517408,-1112.03,0.00027945,5]
[381512243,1756241517417,-734.14,0.00027945,5]
[381512244,1756241517426,-630.84,0.00027945,5]
[381512245,1756241517435,-900.59,0.00027945,5]
[381512246,1756241517444,-400.0,0.00027945,5]
[381512247,1756241517453,-400.0,0.00027945,5]
[381512248,1756241517463,-734.29,0.00027945,5]
[381512249,1756241517471,-1055.56,0.00027945,5]
[381512250,1756241517480,-1238.35,0.00027945,5]
[381512251,1756241517489,-400.0,0.00027945,5]
[381512252,1756241517498,-627.84,0.00027945,5]
[381512253,1756241517507,-400.0,0.00027945,5]
[381512254,1756241517516,-400.0,0.00027945,5]
[381512255,1756241517525,-938.44,0.00027945,5]
[381512256,1756241517534,-841.62,0.00027945,5]
[381512257,1756241517543,-400.0,0.00027945,5]
[381512258,1756241517552,-180.0,0.00027945,5]
[381512259,1756241517562,-400.0,0.00027945,5]
[381512260,1756241517573,-400.0,0.00027945,5]
[381512261,1756241517582,-400.0,0.00027945,5]
[381512262,1756241517591,-709.18,0.00027945,5]
[381512263,1756241517600,-1441.05,0.00027945,5]
[381512264,1756241517609,-400.0,0.00027945,5]
[381512265,1756241517618,-687.78,0.00027945,5]
[381512266,1756241517627,-400.0,0.00027945,5]
[381512267,1756241517636,-517.5,0.00027945,5]
[381512268,1756241517645,-400.0,0.00027945,5]
[381512269,1756241517656,-624.39,0.00027945,5]
[381512270,1756241517666,-400.0,0.00027945,5]
[381512271,1756241517675,-837.2,0.00027945,5]
[381512272,1756241517684,-653.97,0.00027945,5]
[381512273,1756241517694,-400.0,0.00027945,5]
[381512274,1756241517704,-264.71328673,0.00027945,5]
[381512275,1756241517712,-749.44,0.00027945,5]
[381512276,1756241517722,-180.0,0.00027945,5]
[381512277,1756241517732,-900.98,0.00027945,5]
[381512278,1756241517741,-535.64,0.00027945,5]
[381512279,1756241517751,-1718.21,0.00027945,5]
[381512280,1756241517760,-900.97,0.00027945,5]
[381512281,1756241517769,-400.0,0.00027945,5]
[381512282,1756241517778,-779.83,0.00027945,5]
[381512283,1756241517787,-1229.31,0.00027945,5]
[381512284,1756241517797,-659.08,0.00027945,5]
[381512285,1756241517807,-616.16,0.00027945,5]
[381512286,1756241517816,-400.0,0.00027945,5]
[381512287,1756241517826,-491.04,0.00027945,5]
[381512288,1756241517837,-1259.01,0.00027945,5]
[381512289,1756241517847,-1472.7,0.00027945,5]
[381512290,1756241517856,-6220.52,0.00027945,5]
[381512291,1756241517865,-400.0,0.00027945,5]
[381512292,1756241517875,-400.0,0.00027945,5]
[381512293,1756241517884,-400.0,0.00027945,5]
[381512294,1756241517893,-400.0,0.00027945,5]
[381512295,1756241517902,-400.0,0.00027945,5]